fUSD/lending_fUSD_20241223
["ID","MTS","AMOUNT","RATE_DAILY","PERIOD"]
[346455629,1734983451181,-500.0,0.00013972,2]
[346455630,1734983451190,-500.0,0.00013972,2]
[346455631,1734983451199,-500.0,0.00013972,2]
[346455632,1734983451211,-1457.31,0.00013972,2]
[346455633,1734983451220,-500.0,0.00013972,2]
[346455634,1734983451229,-500.0,0.00013972,2]
[346455635,1734983451239,-500.0,0.00013972,2]
[346455636,1734983451248,-744.66,0.00013972,2]
[346455637,1734983451259,-500.0,0.00013972,2]
[346455638,1734983451268,-500.0,0.00013972,2]
[346455639,1734983451278,-614.05,0.00013972,2]
[346455640,1734983451287,-500.0,0.00013972,2]
[346455641,1734983451297,-505.95,0.00013972,2]
[346455642,1734983451421,-437.74403494,0.00013972,2]
[346455643,1734983451431,-1106.29,0.00013972,2]
[346455644,1734983451440,-825.99,0.00013972,2]
[346455645,1734983451449,-614.73,0.00013972,2]
[346455646,1734983451459,-598.56,0.00013972,2]
[346455647,1734983451469,-2428.41,0.00013972,2]
[346455648,1734983451479,-500.0,0.00013972,2]
[346455649,1734983451488,-647.89,0.00013972,2]
[346455650,1734983451498,-555.89,0.00013972,2]
[346455651,1734983451508,-500.0,0.00013972,2]
[346455652,1734983451519,-500.0,0.00013972,2]
[346455653,1734983451529,-1850.68,0.00013972,2]
[346455654,1734983451538,-733.51,0.00013972,2]
[346455655,1734983451548,-1395.61,0.00013972,2]
[346455656,1734983451557,-500.0,0.00013972,2]
[346455657,1734983451567,-500.0,0.00013972,2]
[346455658,1734983451576,-500.0,0.00013972,2]
[346455659,1734983451586,-500.0,0.00013972,2]
[346455660,1734983451595,-1898.84,0.00013972,2]
[346455661,1734983451605,-305.04914211,0.00013972,2]
[346455662,1734983451614,-1190.22,0.00013972,2]
[346455663,1734983451623,-500.0,0.00013972,2]
[346455664,1734983451632,-520.67,0.00013972,2]
[346455665,1734983451642,-500.0,0.00013972,2]
[346455666,1734983451651,-659.78,0.00013972,2]
[346455667,1734983451661,-500.0,0.00013972,2]
[346455668,1734983451670,-706.12,0.00013972,2]
[346455669,1734983451680,-500.0,0.00013972,2]
[346455670,1734983451690,-1161.74,0.00013972,2]
[346455671,1734983451699,-792.15,0.00013972,2]
[346455672,1734983451708,-1198.3,0.00013972,2]
[346455673,1734983451717,-500.0,0.00013972,2]
[346455674,1734983451726,-1131.14,0.00013972,2]
[346455675,1734983451736,-500.0,0.00013972,2]
[346455676,1734983451745,-500.0,0.00013972,2]
[346455677,1734983451755,-1629.86,0.00013972,2]
[346455678,1734983451765,-500.0,0.00013972,2]
[346455679,1734983451774,-501.28770427,0.00013972,2]
[346455680,1734983451784,-500.0,0.00013972,2]
[346455681,1734983451793,-977.33,0.00013972,2]
[346455682,1734983451803,-548.69,0.00013972,2]
[346455683,1734983451812,-500.0,0.00013972,2]
[346455684,1734983451822,-500.0,0.00013972,2]
[346455685,1734983451831,-500.0,0.00013972,2]
[346455686,1734983451841,-500.0,0.00013972,2]
[346455687,1734983451851,-628.27,0.00013972,2]
[346455688,1734983451860,-599.12,0.00013972,2]
[346455689,1734983451870,-500.0,0.00013972,2]
[346455690,1734983451880,-502.85400895,0.00013972,2]
[346455691,1734983451890,-500.0,0.00013972,2]
[346455692,1734983451900,-1391.9,0.00013972,2]
[346455693,1734983451910,-500.0,0.00013972,2]
[346455694,1734983451920,-500.0,0.00013972,2]
[346455695,1734983451930,-2005.44,0.00013972,2]
[346455696,1734983451940,-700.0,0.00013972,2]
[346455697,1734983451950,-500.0,0.00013972,2]
[346455698,1734983451960,-500.0,0.00013972,2]
[346455699,1734983451970,-500.0,0.00013972,2]
[346455700,1734983451979,-500.0,0.00013972,2]
[346455701,1734983451989,-1352.65,0.00013972,2]
[346455702,1734983451999,-500.0,0.00013972,2]
[346455703,1734983452009,-2203.91,0.00013972,2]
[346455704,1734983452019,-929.9,0.00013972,2]
[346455705,1734983452028,-500.0,0.00013972,2]
[346455706,1734983452038,-1256.82,0.00013972,2]
[346455707,1734983452047,-582.13,0.00013972,2]
[346455708,1734983452057,-500.0,0.00013972,2]
[346455709,1734983452067,-500.0,0.00013972,2]
[346455710,1734983452076,-500.0,0.00013972,2]
[346455711,1734983452086,-500.0,0.00013972,2]
[346455712,1734983452096,-1626.83,0.00013972,2]
[346455713,1734983452105,-821.99,0.00013972,2]
[346455714,1734983452114,-500.0,0.00013972,2]
[346455715,1734983452124,-500.0,0.00013972,2]
[346455716,1734983452133,-500.0,0.00013972,2]
[346455717,1734983452144,-1342.26,0.00013972,2]
[346455718,1734983452153,-6402.42,0.00013972,2]
[346455719,1734983452163,-500.0,0.00013972,2]
[346455720,1734983452172,-926.8,0.00013972,2]
[346455721,1734983452182,-1227.45,0.00013972,2]
[346455722,1734983452191,-500.0,0.00013972,2]
[346455723,1734983452200,-1859.49,0.00013972,2]
[346455724,1734983452211,-500.0,0.00013972,2]
[346455725,1734983452223,-500.0,0.00013972,2]
[346455726,1734983452232,-614.72,0.00013972,2]
[346455727,1734983452242,-500.0,0.00013972,2]
[346455728,1734983452251,-1326.67,0.00013972,2]
[346455729,1734983452262,-500.0,0.00013972,2]
[346455730,1734983452272,-500.0,0.00013972,2]
[346455731,1734983452281,-500.0,0.00013972,2]
[346455732,1734983452292,-500.0,0.00013972,2]
[346455733,1734983452302,-596.52,0.00013972,2]
[346455734,1734983452311,-500.0,0.00013972,2]
[346455735,1734983452321,-1015.69,0.00013972,2]
[346455736,1734983452331,-500.0,0.00013972,2]
[346455737,1734983452341,-500.0,0.00013972,2]
[346455738,1734983452351,-1210.05,0.00013972,2]
[346455739,1734983452360,-1848.4,0.00013972,2]
[346455740,1734983452370,-574.22,0.00013972,2]
[346455741,1734983452379,-1285.29,0.00013972,2]
[346455742,1734983452390,-500.0,0.00013972,2]
[346455743,1734983452399,-500.0,0.00013972,2]
[346455744,1734983452409,-500.0,0.00013972,2]
[346455745,1734983452419,-500.0,0.00013972,2]
[346455746,1734983452428,-2751.45,0.00013972,2]
[346455747,1734983452438,-500.0,0.00013972,2]
[346455748,1734983452448,-1128.87,0.00013972,2]
[346455749,1734983452457,-500.0,0.00013972,2]
[346455750,1734983452467,-6056.43,0.00013972,2]
[346455751,1734983452476,-683.58,0.00013972,2]
[346455752,1734983452486,-1154.43,0.00013972,2]
[346455753,1734983452495,-500.0,0.00013972,2]
[346455754,1734983452505,-500.0,0.00013972,2]
[346455755,1734983452515,-500.0,0.00013972,2]
[346455756,1734983452525,-11553.88,0.00013972,2]
[346455757,1734983452535,-3461.58,0.00013972,2]
[346455758,1734983452544,-2563.93,0.00013972,2]
[346455759,1734983452554,-1292.7,0.00013972,2]
[346455760,1734983452563,-500.0,0.00013972,2]
[346455761,1734983452573,-500.0,0.00013972,2]
[346455762,1734983452582,-500.0,0.00013972,2]
[346455763,1734983452591,-2781.72,0.00013972,2]
[346455764,1734983452601,-1045.69,0.00013972,2]
[346455765,1734983452610,-500.0,0.00013972,2]
[346455766,1734983452620,-554.57,0.00013972,2]
[346455767,1734983452630,-1274.89,0.00013972,2]
[346455768,1734983452640,-500.0,0.00013972,2]
[346455769,1734983452650,-500.0,0.00013972,2]
[346455770,1734983452659,-1146.69,0.00013972,2]
[346455771,1734983452668,-500.0,0.00013972,2]
[346455772,1734983452678,-948.38,0.00013972,2]
[346455773,1734983452687,-500.0,0.00013972,2]
[346455774,1734983452696,-500.0,0.00013972,2]
[346455775,1734983452705,-1729.1,0.00013972,2]
[346455776,1734983452714,-500.0,0.00013972,2]
[346455777,1734983452724,-1060.71,0.00013972,2]
[346455778,1734983452734,-15575.1,0.00013972,2]
[346455779,1734983452744,-500.0,0.00013972,2]
[346455780,1734983452754,-1437.23,0.00013972,2]
[346455781,1734983452763,-500.0,0.00013972,2]
[346455782,1734983452773,-3891.1,0.00013972,2]
[346455783,1734983452783,-920.78,0.00013972,2]
[346455784,1734983452793,-2142.93,0.00013972,2]
[346455785,1734983452803,-736.03,0.00013972,2]
[346455786,1734983452812,-500.0,0.00013972,2]
[346455787,1734983452821,-500.0,0.00013972,2]
[346455788,1734983452831,-1226.17,0.00013972,2]
[346455789,1734983452840,-500.0,0.00013972,2]
[346455790,1734983452850,-500.0,0.00013972,2]
[346455791,1734983452859,-500.0,0.00013972,2]
[346455792,1734983452868,-500.0,0.00013972,2]
[346455793,1734983452877,-1074.33,0.00013972,2]
[346455794,1734983452887,-500.0,0.00013972,2]
[346455795,1734983452896,-6302.87,0.00013972,2]
[346455796,1734983452905,-3579.93,0.00013972,2]
[346455797,1734983452915,-678.95,0.00013972,2]
[346455798,1734983452924,-1468.11,0.00013972,2]
[346455799,1734983452934,-500.0,0.00013972,2]
[346455800,1734983452943,-695.77,0.00013972,2]
[346455801,1734983452952,-7214.02,0.00013972,2]
[346455802,1734983452962,-500.0,0.00013972,2]
[346455803,1734983452972,-500.0,0.00013972,2]
[346455804,1734983452981,-6586.38,0.00013972,2]
[346455805,1734983452991,-500.0,0.00013972,2]
[346455806,1734983453000,-500.0,0.00013972,2]
[346455807,1734983453010,-525.45901526,0.00013972,2]
[346455808,1734983453020,-500.0,0.00013972,2]
[346455809,1734983453029,-500.0,0.00013972,2]
[346455810,1734983453038,-1410.03,0.00013972,2]
[346455811,1734983453048,-500.0,0.00013972,2]
[346455812,1734983453057,-500.0,0.00013972,2]
[346455813,1734983453067,-2688.66,0.00013972,2]
[346455814,1734983453076,-1472.35,0.00013972,2]
[346455815,1734983453086,-332.11100491,0.00013972,2]
[346455816,1734983453095,-183.88472927,0.00013972,2]
[346455817,1734983453105,-500.0,0.00013972,2]
[346455818,1734983453114,-500.0,0.00013972,2]
[346455819,1734983453123,-1255.72,0.00013972,2]
[346455820,1734983453133,-1233.64,0.00013972,2]
[346455821,1734983453142,-500.0,0.00013972,2]
[346455822,1734983453151,-701.82,0.00013972,2]
[346455823,1734983453161,-5090.58,0.00013972,2]
[346455824,1734983453170,-500.0,0.00013972,2]
[346455825,1734983453179,-500.0,0.00013972,2]
[346455826,1734983453188,-3635.2,0.00013972,2]
[346455827,1734983453198,-500.0,0.00013972,2]
[346455828,1734983453207,-869.32,0.00013972,2]
[346455829,1734983453220,-500.0,0.00013972,2]
[346455830,1734983453229,-1046.58,0.00013972,2]
[346455831,1734983453238,-627.84,0.00013972,2]
[346455832,1734983453247,-4671.0,0.00013972,2]
[346455833,1734983453259,-500.0,0.00013972,2]
[346455834,1734983453268,-4686.61,0.00013972,2]
[346455835,1734983453277,-500.0,0.00013972,2]
[346455836,1734983453288,-630.7,0.00013972,2]
[346455837,1734983453297,-820.95,0.00013972,2]
[346455838,1734983453306,-507.15173181,0.00013972,2]
[346455839,1734983453315,-501.94428188,0.00013972,2]
[346455840,1734983453324,-1130.83,0.00013972,2]
[346455841,1734983453333,-1836.15,0.00013972,2]
[346455842,1734983453342,-2995.53,0.00013972,2]
[346455843,1734983453350,-2323.91,0.00013972,2]
[346455844,1734983453359,-516.26,0.00013972,2]
[346455845,1734983453368,-500.0,0.00013972,2]
[346455846,1734983453377,-1155.82,0.00013972,2]
[346455847,1734983453386,-500.0,0.00013972,2]
[346455848,1734983453395,-1123.17,0.00013972,2]
[346455849,1734983453404,-2403.14,0.00013972,2]
[346455850,1734983453413,-644.45882397,0.00013972,2]
[346455851,1734983453423,-810.25,0.00013972,2]
[346455852,1734983453432,-902.0,0.00013972,2]
[346455853,1734983453442,-1314.92,0.00013972,2]
[346455854,1734983453451,-500.0,0.00013972,2]
[346455855,1734983453461,-500.0,0.00013972,2]
[346455856,1734983453471,-500.0,0.00013972,2]
[346455857,1734983453784,-5525.58,0.00013972,2]
[346455858,1734983453794,-512.09,0.00013972,2]
[346455859,1734983453804,-500.0,0.00013972,2]
[346455860,1734983453814,-500.0,0.00013972,2]
[346455861,1734983453824,-500.0,0.00013972,2]
[346455862,1734983453834,-666.71,0.00013972,2]
[346455863,1734983453843,-2455.92,0.00013972,2]
[346455864,1734983453853,-872.99,0.00013972,2]
[346455865,1734983453863,-4918.98,0.00013972,2]
[346455866,1734983453873,-500.0,0.00013972,2]
[346455867,1734983453883,-500.0,0.00013972,2]
[346455868,1734983453893,-500.0,0.00013972,2]
[346455869,1734983453902,-500.0,0.00013972,2]
[346455870,1734983453913,-500.0,0.00013972,2]
[346455871,1734983453922,-4475.48,0.00013972,2]
[346455872,1734983453933,-579.5,0.00013972,2]
[346455873,1734983453943,-676.19,0.00013972,2]
[346455874,1734983453953,-507.08110093,0.00013972,2]
[346455875,1734983453962,-500.0,0.00013972,2]
[346455876,1734983453972,-500.0,0.00013972,2]
[346455877,1734983453982,-553.21,0.00013972,2]
[346455878,1734983453992,-8415.59,0.00013972,2]
[346455879,1734983454002,-792.97,0.00013972,2]
[346455880,1734983454015,-500.0,0.00013972,2]
[346455881,1734983454024,-3919.46,0.00013972,2]
[346455882,1734983454034,-834.47,0.00013972,2]
[346455883,1734983454043,-3391.19,0.00013972,2]
[346455884,1734983454053,-636.38,0.00013972,2]
[346455885,1734983454063,-184.45957284,0.00013972,2]
[346455886,1734983454073,-2742.37,0.00013972,2]
[346455887,1734983454083,-1027.57,0.00013972,2]
[346455888,1734983454092,-847.46,0.00013972,2]
[346455889,1734983454102,-9012.3,0.00013972,2]
[346455890,1734983454112,-500.0,0.00013972,2]
[346455891,1734983454122,-555.96,0.00013972,2]
[346455892,1734983454131,-500.0,0.00013972,2]
[346455893,1734983454142,-500.0,0.00013972,2]
[346455894,1734983454151,-500.0,0.00013972,2]
[346455895,1734983454161,-500.0,0.00013972,2]
[346455896,1734983454171,-500.0,0.00013972,2]
[346455897,1734983454180,-5252.8,0.00013972,2]
[346455898,1734983454190,-6315.37,0.00013972,2]
[346455899,1734983454199,-4008.04,0.00013972,2]
[346455900,1734983454209,-7027.53,0.00013972,2]
[346455901,1734983454223,-500.0,0.00013972,2]
[346455902,1734983454233,-500.0,0.00013972,2]
[346455903,1734983454242,-1696.77,0.00013972,2]
[346455904,1734983454251,-5968.56,0.00013972,2]
[346455905,1734983454262,-500.0,0.00013972,2]
[346455906,1734983454272,-500.0,0.00013972,2]
[346455907,1734983454282,-500.0,0.00013972,2]
[346455908,1734983454292,-500.0,0.00013972,2]
[346455909,1734983454301,-500.0,0.00013972,2]
[346455910,1734983454310,-500.0,0.00013972,2]
[346455911,1734983454319,-2000.3,0.00013972,2]
[346455912,1734983454328,-3154.52,0.00013972,2]
[346455913,1734983454338,-14873.62,0.00013972,2]
[346455914,1734983454347,-2211.27,0.00013972,2]
[346455915,1734983454357,-500.0,0.00013972,2]
[346455916,1734983454366,-500.0,0.00013972,2]
[346455917,1734983454376,-1066.69,0.00013972,2]
[346455918,1734983454386,-500.0,0.00013972,2]
[346455919,1734983454396,-500.0,0.00013972,2]
[346455920,1734983454406,-500.0,0.00013972,2]
[346455921,1734983454415,-500.0,0.00013972,2]
[346455922,1734983454425,-500.0,0.00013972,2]
[346455923,1734983454434,-516.46078625,0.00013972,2]
[346455924,1734983454443,-500.0,0.00013972,2]
[346455925,1734983454453,-500.0,0.00013972,2]
[346455926,1734983454462,-500.0,0.00013972,2]
[346455927,1734983454472,-659.11,0.00013972,2]
[346455928,1734983454481,-18570.76,0.00013972,2]
[346455929,1734983454491,-500.0,0.00013972,2]
[346455930,1734983454500,-564.57,0.00013972,2]
[346455931,1734983454511,-2330.64,0.00013972,2]
[346455932,1734983454521,-3866.62,0.00013972,2]
[346455933,1734983454530,-783.78,0.00013972,2]
[346455934,1734983454540,-508.97,0.00013972,2]
[346455935,1734983454550,-829.84,0.00013972,2]
[346455936,1734983454560,-20926.66,0.00013972,2]
[346455937,1734983454570,-500.0,0.00013972,2]
[346455938,1734983454580,-500.0,0.00013972,2]
[346455939,1734983454598,-3757.16,0.00013972,2]
[346455940,1734983454608,-307.601811,0.00013972,2]
[346455941,1734983454618,-7925.4,0.00013972,2]
[346455942,1734983454627,-607.52,0.00013972,2]
[346455943,1734983454637,-2302.97,0.00013972,2]
[346455944,1734983454646,-500.0,0.00013972,2]
[346455945,1734983454655,-590.70380565,0.00013972,2]
[346455946,1734983454664,-500.0,0.00013972,2]
[346455947,1734983454674,-500.0,0.00013972,2]
[346455948,1734983454683,-282.62930031,0.00013972,2]
[346455949,1734983454693,-7966.95,0.00013972,2]
[346455950,1734983454702,-1003.84,0.00013972,2]
[346455951,1734983454711,-2515.91,0.00013972,2]
[346455952,1734983454720,-2630.63,0.00013972,2]
[346455953,1734983454729,-698.68,0.00013972,2]
[346455954,1734983454739,-500.0,0.00013972,2]
[346455955,1734983454751,-839.13,0.00013972,2]
[346455956,1734983454767,-9927.13,0.00013972,2]
[346455957,1734983454781,-1217.3,0.00013972,2]
[346455958,1734983454790,-241.25152209,0.00013972,2]
[346455959,1734983454799,-2519.57,0.00013972,2]
[346455960,1734983454809,-500.0,0.00013972,2]
[346455961,1734983454819,-1299.48,0.00013972,2]
[346455962,1734983454828,-500.0,0.00013972,2]
[346455963,1734983454838,-4244.12,0.00013972,2]
[346455964,1734983454847,-1241.24,0.00013972,2]
[346455965,1734983454856,-500.0,0.00013972,2]
[346455966,1734983454866,-500.0,0.00013972,2]
[346455967,1734983454875,-500.0,0.00013972,2]
[346455968,1734983454884,-1685.46,0.00013972,2]
[346455969,1734983454894,-638.09411818,0.00013972,2]
[346455970,1734983454903,-500.0,0.00013972,2]
[346455971,1734983454912,-500.0,0.00013972,2]
[346455972,1734983454923,-1846.67,0.00013972,2]
[346455973,1734983454932,-500.0,0.00013972,2]
[346455974,1734983454941,-614.81,0.00013972,2]
[346455975,1734983454950,-500.0,0.00013972,2]
[346455976,1734983454959,-500.0,0.00013972,2]
[346455977,1734983454968,-3928.29,0.00013972,2]
[346455978,1734983454977,-500.0,0.00013972,2]
[346455979,1734983454986,-500.0,0.00013972,2]
[346455980,1734983454996,-4088.25,0.00013972,2]
[346455981,1734983455005,-500.0,0.00013972,2]
[346455982,1734983455014,-2122.09,0.00013972,2]
[346455983,1734983455023,-500.0,0.00013972,2]
[346455984,1734983455032,-695.21,0.00013972,2]
[346455985,1734983455041,-500.0,0.00013972,2]
[346455986,1734983455050,-500.0,0.00013972,2]
[346455987,1734983455060,-505.72503023,0.00013972,2]
[346455988,1734983455069,-3723.91,0.00013972,2]
[346455989,1734983455078,-1404.9,0.00013972,2]
[346455990,1734983455087,-501.76005484,0.00013972,2]
[346455991,1734983455096,-500.0,0.00013972,2]
[346455992,1734983455105,-8672.72,0.00013972,2]
[346455993,1734983455115,-500.0,0.00013972,2]
[346455994,1734983455124,-500.0,0.00013972,2]
[346455995,1734983455133,-500.0,0.00013972,2]
[346455996,1734983455142,-1878.68,0.00013972,2]
[346455997,1734983455150,-1063.46,0.00013972,2]
[346455998,1734983455159,-7447.88,0.00013972,2]
[346455999,1734983455168,-2573.11,0.00013972,2]
[346456000,1734983455177,-26356.9,0.00013972,2]
[346456001,1734983455186,-8864.44,0.00013972,2]
[346456002,1734983455195,-3886.04,0.00013972,2]
[346456003,1734983455203,-500.0,0.00013972,2]
[346456004,1734983455217,-5445.13,0.00013972,2]
[346456005,1734983455226,-1319.96,0.00013972,2]
[346456006,1734983455235,-500.0,0.00013972,2]
[346456007,1734983455244,-500.0,0.00013972,2]
[346456008,1734983455254,-500.0,0.00013972,2]
[346456009,1734983455263,-3366.1,0.00013972,2]
[346456010,1734983455272,-500.0,0.00013972,2]
[346456011,1734983455281,-500.0,0.00013972,2]
[346456012,1734983455291,-8257.73,0.00013972,2]
[346456013,1734983455300,-1348.11,0.00013972,2]
[346456014,1734983455309,-500.0,0.00013972,2]
[346456015,1734983455318,-1344.55,0.00013972,2]
[346456016,1734983455327,-1044.67,0.00013972,2]
[346456017,1734983455337,-590.09,0.00013972,2]
[346456018,1734983455346,-1845.89,0.00013972,2]
[346456019,1734983455354,-2303.4,0.00013972,2]
[346456020,1734983455363,-3629.68,0.00013972,2]
[346456021,1734983455373,-500.0,0.00013972,2]
[346456022,1734983455382,-646.74,0.00013972,2]
[346456023,1734983455391,-1782.54,0.00013972,2]
[346456024,1734983455400,-1508.2,0.00013972,2]
[346456025,1734983455409,-500.0,0.00013972,2]
[346456026,1734983455419,-3087.07,0.00013972,2]
[346456027,1734983455428,-500.0,0.00013972,2]
[346456028,1734983455437,-1473.1,0.00013972,2]
[346456029,1734983455446,-500.0,0.00013972,2]
[346456030,1734983455455,-2479.51,0.00013972,2]
[346456031,1734983455465,-4816.5,0.00013972,2]
[346456032,1734983455474,-500.0,0.00013972,2]
[346456033,1734983455483,-579.61608306,0.00013972,2]
[346456034,1734983455492,-614.37,0.00013972,2]
[346456035,1734983455501,-594.99,0.00013972,2]
[346456036,1734983455515,-500.0,0.00013972,2]
[346456037,1734983455525,-1302.53,0.00013972,2]
[346456038,1734983455534,-501.76769393,0.00013972,2]
[346456039,1734983455544,-2115.39,0.00013972,2]
[346456040,1734983455553,-4086.58,0.00013972,2]
[346456041,1734983455562,-1084.22,0.00013972,2]
[346456042,1734983455571,-500.0,0.00013972,2]
[346456043,1734983455580,-1886.31,0.00013972,2]
[346456044,1734983455590,-253.89797307,0.00014044,2]
[346456045,1734983455599,-590.97650409,0.00014146,2]
[346456046,1734983455608,-8162.17737023,0.00014146,2]
[346456047,1734983455617,-52723.65478891,0.00014167,2]
[346456048,1734983455627,-500.0,0.00014199,2]
[346456049,1734983455637,-500.0,0.00014199,2]
[346456050,1734983455647,-46894.7013087,0.000142,2]
[346456051,1734983455656,-3858.37,0.00014245,2]
[346456052,1734983455666,-4101.31,0.00014245,2]
[346456053,1734983455675,-7168.53,0.00014245,2]
[346456054,1734983455686,-7733.77,0.00014245,2]
[346456055,1734983455696,-37490.71,0.00014245,2]
[346456056,1734983455705,-4045.76,0.00014245,2]
[346456057,1734983455714,-3336.73,0.00014245,2]
[346456058,1734983455723,-1980.4,0.00014245,2]
[346456059,1734983455733,-5333.98,0.00014245,2]
[346456060,1734983455742,-27080.99,0.00014245,2]
[346456061,1734983455751,-1435.78,0.00014245,2]
[346456062,1734983455761,-3942.55,0.00014245,2]
[346456063,1734983455770,-3489.33,0.00014245,2]
[346456064,1734983455780,-2639.66,0.00014245,2]
[346456065,1734983455789,-500.0,0.00014245,2]
[346456066,1734983455799,-500.0,0.00014245,2]
[346456067,1734983455808,-5019.99,0.00014245,2]
[346456068,1734983455817,-500.0,0.00014245,2]
[346456069,1734983455826,-1258.46,0.00014245,2]
[346456070,1734983455836,-3190.49,0.00014245,2]
[346456071,1734983455846,-3377.35,0.00014245,2]
[346456072,1734983455855,-757.99,0.00014246,2]
[346456073,1734983455864,-500.0,0.00014246,2]
[346456074,1734983455873,-1506.47,0.00014246,2]
[346456075,1734983455883,-500.0,0.00014246,2]
[346456076,1734983455892,-500.0,0.00014246,2]
[346456077,1734983455902,-622.17,0.00014246,2]
[346456078,1734983455913,-500.0,0.00014246,2]
[346456079,1734983455922,-745.34,0.00014246,2]
[346456080,1734983455932,-1355.56,0.00014246,2]
[346456081,1734983455941,-500.0,0.00014246,2]
[346456082,1734983455951,-500.0,0.00014246,2]
[346456083,1734983455960,-500.0,0.00014246,2]
[346456084,1734983455969,-500.0,0.00014246,2]
[346456085,1734983455978,-943.39,0.00014246,2]
[346456086,1734983455988,-234.39024151,0.00014246,2]
[346456087,1734983455997,-500.0,0.00014246,2]
[346456088,1734983456008,-500.0,0.00014246,2]
[346456089,1734983456018,-500.0,0.00014246,2]
[346456090,1734983456027,-500.0,0.00014246,2]
[346456091,1734983456037,-500.0,0.00014246,2]
[346456092,1734983456047,-500.0,0.00014246,2]
[346456093,1734983456056,-500.0,0.00014246,2]
[346456094,1734983456065,-1112.52,0.00014246,2]
[346456095,1734983456075,-500.0,0.00014246,2]
[346456096,1734983456084,-504.88572253,0.00014246,2]
[346456097,1734983456093,-500.0,0.00014246,2]
[346456098,1734983456187,-500.0,0.00014246,2]
[346456099,1734983456196,-500.0,0.00014246,2]
[346456100,1734983456206,-500.0,0.00014246,2]
[346456101,1734983456217,-500.0,0.00014246,2]
[346456102,1734983456226,-790.69,0.00014246,2]
[346456103,1734983456235,-500.0,0.00014246,2]
[346456104,1734983456244,-500.0,0.00014246,2]
[346456105,1734983456254,-500.0,0.00014246,2]
[346456106,1734983456263,-855.0,0.00014246,2]
[346456107,1734983456272,-426.44657201,0.00014246,2]
[346456108,1734983456281,-500.0,0.00014246,2]
[346456109,1734983456292,-876.69,0.00014246,2]
[346456110,1734983456301,-562.06,0.00014246,2]
[346456111,1734983456311,-500.0,0.00014246,2]
[346456112,1734983456319,-847.08,0.00014246,2]
[346456113,1734983456328,-867.59,0.00014246,2]
[346456114,1734983456337,-500.0,0.00014246,2]
[346456115,1734983456347,-500.0,0.00014246,2]
[346456116,1734983456356,-895.5,0.00014246,2]
[346456117,1734983456365,-500.0,0.00014246,2]
[346456118,1734983456374,-500.0,0.00014246,2]
[346456119,1734983456382,-500.0,0.00014246,2]
[346456120,1734983456391,-1304.71,0.00014246,2]
[346456121,1734983456401,-500.0,0.00014246,2]
[346456122,1734983456409,-500.0,0.00014246,2]
[346456123,1734983456419,-500.0,0.00014246,2]
[346456124,1734983456428,-500.0,0.00014246,2]
[346456125,1734983456438,-1693.88,0.00014246,2]
[346456126,1734983456447,-500.0,0.00014246,2]
[346456127,1734983456456,-500.0,0.00014246,2]
[346456128,1734983456465,-500.0,0.00014246,2]